bitfinex/quotes_ETHUSD_20240907
["timestamp","ask_amount","ask_price","bid_price","bid_amount"]
[1725721107886,6.71819907,2299.9,2299.8,4.52937046]
[1725721110861,3.0,2299.9,2299.8,4.52937046]
[1725721111066,3.04552606,2300.0,2299.9,4.34801]
[1725721111458,3.04552606,2300.0,2299.9,4.5298908]
[1725721111790,3.0,2300.0,2299.9,4.5298908]
[1725721113169,3.0,2300.0,2299.9,8.8779008]
[1725721113390,3.0,2300.2,2300.1,4.34763]
[1725721113548,3.0,2300.2,2300.1,4.52927333]
[1725721114468,3.04552606,2300.2,2300.1,0.18164333]
[1725721114678,3.7674135,2300.2,2300.1,0.18164333]
[1725721125182,3.04552606,2300.2,2300.1,0.18164333]
[1725721130221,3.04552606,2300.2,2300.1,4.52927333]
[1725721130426,3.0,2300.2,2300.1,4.52927333]
[1725721132027,5.26560587,2300.2,2300.1,0.18164333]
[1725721132185,6.13869049,2300.2,2300.1,0.18164333]
[1725721134287,6.13869049,2300.2,2299.8,4.34808]
[1725721134487,1.54957862,2299.9,2299.8,4.34808]
[1725721138203,12.45,2301.0,2300.4,11.16104]
[1725721138407,1.54957862,2300.7,2300.4,11.16104]
[1725721139499,10.27,2300.5,2300.4,11.16104]
[1725721139715,3.0,2300.5,2300.4,12.711885]
[1725721139896,3.71637929,2300.9,2300.7,4.3465]
[1725721140097,3.0,2300.8,2300.7,4.3465]
[1725721141906,3.04552606,2300.8,2300.7,4.3465]
[1725721142524,3.04552606,2300.8,2300.5,4.34678]
[1725721142525,3.04552606,2300.8,2300.5,4.34677]
[1725721142725,3.76190535,2300.7,2300.5,8.69355]
[1725721143238,3.0,2300.6,2300.5,4.34677]
[1725721144239,3.0,2300.6,2300.5,4.52096541]
[1725721146814,3.0,2300.6,2300.5,0.17419541]
[1725721149441,3.67619054,2300.6,2300.5,0.17419541]
[1725721151637,3.67619054,2300.6,2300.3,4.34724]
[1725721151836,3.71637929,2300.4,2300.3,4.34724]
[1725721152046,6.71637929,2300.4,2300.3,4.34724]
[1725721152842,3.0,2300.4,2300.3,8.69449]
[1725721153045,3.04552606,2300.5,2300.4,4.34707]
[1725721153247,6.76190535,2300.8,2300.6,4.34663]
[1725721153549,0.04552606,2300.7,2300.6,4.34663]
[1725721157140,0.04552606,2300.7,2300.5,4.34687]
[1725721157353,3.71637929,2300.6,2300.5,4.34687]
[1725721157557,6.71637929,2300.6,2300.5,4.34687]
[1725721159448,6.71637929,2300.6,2300.5,4.52119198]
[1725721162044,4.54887393,2300.6,2300.5,4.52119198]
[1725721164412,1.54887393,2300.6,2300.5,4.52119198]
[1725721170936,2.00831393,2300.6,2300.5,0.17432198]
[1725721172048,1.54887393,2300.6,2300.5,8.86808198]
[1725721174762,7.27,2301.3,2300.6,2.2637]
[1725721174928,1.54887393,2301.5,2301.1,6.60943]
[1725721175277,1.54887393,2301.5,2301.4,4.34518]
[1725721175628,1.54887393,2301.5,2301.4,8.86347199]
[1725721176131,1.54887393,2301.5,2301.4,4.51829199]
[1725721176332,1.54887393,2301.5,2301.4,8.86347199]
[1725721176547,1.54887393,2301.5,2301.4,4.51829199]
[1725721181085,7.27,2302.3,2301.6,2.2637]
[1725721181232,0.04552606,2302.2,2302.1,4.34385]
[1725721181433,0.04552606,2302.2,2302.1,4.51523729]
[1725721181434,2.00384238,2302.2,2302.1,4.51523729]
[1725721182075,4.1671193,2302.2,2302.1,4.51523729]
[1725721182462,7.1671193,2302.2,2302.1,4.51523729]
[1725721184589,7.88838384,2302.2,2302.1,0.17138729]
[1725721184782,7.9339099,2302.2,2302.1,0.17138729]
[1725721185078,7.9339099,2302.2,2302.1,0.1706374]
[1725721185288,7.9339099,2302.2,2301.9,4.34413]
[1725721185454,3.71215085,2302.0,2301.9,4.34413]
[1725721185660,3.75767691,2302.0,2301.9,4.34413]
[1725721185855,6.75767691,2302.0,2301.9,4.34413]
[1725721186560,6.71215085,2302.0,2301.9,4.34413]
[1725721189288,6.71215085,2302.0,2301.9,4.51501707]
[1725721191375,3.0,2302.0,2301.9,4.51501707]
[1725721191570,3.04552606,2302.1,2302.0,4.34404]
[1725721191967,3.04552606,2302.1,2302.0,4.51481171]
[1725721194777,3.04552606,2302.1,2302.0,0.17077171]
[1725721196004,6.0858906,2302.1,2302.0,0.17077171]
[1725721196308,3.7667906,2302.1,2302.0,4.51481171]
[1725721196689,0.04552606,2302.1,2302.0,4.51481171]
[1725721199086,0.04552606,2302.1,2302.0,0.17077171]
[1725721200022,0.04552606,2302.1,2302.0,4.51481171]
[1725721201187,0.04552606,2302.1,2302.0,0.17077171]
[1725721201387,0.04552606,2302.1,2302.0,4.51481171]
[1725721204093,4.59228111,2302.1,2302.0,4.51481171]
[1725721204301,11.75995607,2302.1,2302.0,0.17077171]
[1725721204514,2.3191,2301.8,2301.3,4.34523]
[1725721204825,1.54675505,2301.5,2301.3,4.34523]
[1725721205027,0.04552606,2301.4,2301.3,4.34523]
[1725721205336,1.54675505,2301.5,2301.1,2.3203]
[1725721205337,1.59228111,2301.5,2301.1,2.3203]
[1725721205547,1.54675505,2301.5,2301.4,4.34518]
[1725721205841,2.00186467,2301.7,2301.6,4.3448]
[1725721206737,1.59228111,2301.9,2301.8,4.34442]
[1725721208405,1.54675505,2301.9,2301.8,8.68884]
[1725721209108,2.04734395,2302.0,2301.9,8.68846]
[1725721209308,0.45506284,2302.0,2301.9,11.00876]
[1725721209551,0.04552606,2302.4,2302.3,4.34348]
[1725721209837,1.59228111,2302.5,2302.4,4.34329]
[1725721210039,3.71093154,2302.6,2302.4,4.34329]
[1725721210248,0.04552606,2302.5,2302.4,4.34329]
[1725721210409,0.50062064,2302.5,2302.4,4.34329]
[1725721210605,0.50062064,2302.5,2302.3,6.66376]
[1725721211050,0.92177586,2302.5,2302.3,4.34346]
[1725721211208,3.7564576,2302.4,2302.1,4.34368]
[1725721211407,3.71093154,2302.2,2302.1,4.34368]
[1725721211606,6.7564576,2302.2,2302.1,4.34368]
[1725721213203,6.71093154,2302.2,2302.1,4.34368]
[1725721213742,3.0,2302.2,2302.1,4.34368]
[1725721214049,3.0,2302.3,2302.2,4.34367]
[1725721214924,0.04552606,2302.4,2302.3,4.34348]
[1725721215121,0.04552606,2302.5,2302.4,4.34329]
[1725721215442,3.71093154,2302.6,2302.4,4.5020179]
[1725721216169,3.71093154,2302.6,2302.5,4.3431]
[1725721216331,6.71093154,2302.6,2302.5,4.3431]
[1725721216524,6.71093154,2302.6,2302.5,4.50170629]
[1725721217858,7.3865773,2302.6,2302.5,0.15860629]
[1725721218433,14.26591336,2302.6,2302.1,4.34385]
[1725721218763,3.71093154,2302.3,2302.2,0.15883899]
[1725721219148,6.71093154,2302.3,2302.2,4.50250899]
[1725721219965,3.0,2302.3,2302.2,6.94290899]
[1725721220272,3.04552606,2302.4,2302.3,4.34348]
[1725721220569,3.0,2302.4,2302.3,4.34348]
[1725721220853,3.0,2302.4,2302.3,4.50220366]
[1725721222938,0.04552606,2302.5,2302.4,4.34329]
[1725721223427,0.04552606,2302.5,2302.4,4.50189834]
[1725721224040,3.67564576,2302.6,2302.4,4.50189834]
[1725721224041,3.72117182,2302.6,2302.4,4.50189834]
[1725721224256,3.04552606,2302.6,2302.4,4.50189834]
[1725721225231,3.71093154,2302.5,2302.4,4.50189834]
[1725721225565,3.71093154,2302.5,2302.4,8.84518834]
[1725721225566,3.0,2302.5,2302.4,8.84518834]
[1725721225871,3.0,2302.6,2302.5,4.3431]
[1725721226361,3.0,2302.6,2302.5,4.50127206]
[1725721226961,3.0,2302.6,2302.5,0.15817206]
[1725721227166,4.10990176,2302.6,2302.5,0.15817206]
[1725721227374,4.10990176,2302.6,2302.3,4.3434]
[1725721227534,4.10990176,2302.6,2302.5,0.15817206]
[1725721227882,3.71093154,2302.5,2302.4,4.34325]
[1725721228043,6.71093154,2302.5,2302.4,4.34325]
[1725721228577,6.71093154,2302.5,2302.3,8.68676]
[1725721228778,3.0,2302.4,2302.3,4.34337]
[1725721229271,3.0,2302.4,2302.2,4.34366]
[1725721229475,0.04552606,2302.3,2302.2,4.34366]
[1725721229649,3.7564576,2302.3,2302.1,4.34383]
[1725721229835,3.04552606,2302.2,2302.1,4.34383]
[1725721231068,3.04552606,2302.2,2302.0,8.68782]
[1725721231306,3.04552606,2302.2,2302.1,4.34385]
[1725721232193,3.0,2302.2,2302.1,8.6877]
[1725721232396,3.0,2302.2,2302.1,11.1281]
[1725721232595,3.04552606,2302.2,2302.1,11.1281]
[1725721232997,3.04552606,2302.2,2302.1,8.6877]
[1725721233569,3.04552606,2302.2,2302.1,4.34385]
[1725721235327,3.0,2302.2,2302.1,4.34385]
[1725721235820,3.0,2302.2,2302.1,8.6877]
[1725721235994,0.45502767,2302.3,2302.2,4.34367]
[1725721236197,0.45502767,2302.3,2302.2,6.84117]
[1725721237619,0.45502767,2302.3,2302.2,6.99988307]
[1725721239740,0.45502767,2302.3,2302.2,11.34355307]
[1725721240243,0.45502767,2302.3,2302.2,4.50238307]
[1725721241026,0.45502767,2302.3,2302.2,8.84605307]
[1725721242947,0.45502767,2302.3,2302.2,4.50238307]
[1725721243303,0.45502767,2302.3,2302.2,8.84605307]
[1725721245132,3.0,2302.5,2302.4,8.68658]
[1725721245516,0.45501684,2302.6,2302.5,8.6862]
[1725721245705,0.45501684,2302.6,2302.5,11.1837]
[1725721245904,0.45501684,2302.6,2302.5,11.34184691]
[1725721247765,0.45501684,2302.6,2302.5,11.89184691]
[1725721247923,0.45501684,2302.6,2302.5,13.5153466]
[1725721249036,3.71092367,2302.9,2302.8,8.68506]
[1725721249231,3.71092367,2302.9,2302.8,8.84255905]
[1725721249824,0.45496534,2303.0,2302.9,8.6847]
[1725721250152,0.45496534,2303.0,2302.9,8.84203975]
[1725721250357,3.45496534,2303.0,2302.9,8.84203975]
[1725721251039,3.0,2303.0,2302.9,8.84203975]
[1725721254461,3.0,2303.0,2302.9,9.54847391]
[1725721255367,3.71092367,2303.1,2303.0,4.34216]
[1725721255668,6.71092367,2303.1,2303.0,4.49938449]
[1725721258132,10.98092367,2303.5,2303.3,4.34159]
[1725721258338,3.71092367,2303.5,2303.4,4.3414]
[1725721258674,3.71092367,2303.5,2303.4,4.49769182]
[1725721259578,3.0,2303.6,2303.5,4.34121]
[1725721260069,4.54465766,2303.6,2303.5,4.49738661]
[1725721260283,1.54465766,2303.6,2303.5,4.49738661]
[1725721262145,3.86865766,2303.6,2303.5,0.15617661]
[1725721262473,6.86865766,2303.6,2303.3,4.34149]
[1725721262678,3.0,2303.6,2303.5,0.15617661]
[1725721262853,1.54465766,2303.6,2303.4,0.15629182]
[1725721263035,1.54465766,2303.6,2303.3,4.34149]
[1725721263241,1.54465766,2303.4,2303.2,4.34177]
[1725721263845,1.54465766,2303.4,2303.1,4.34181]
[1725721264047,1.54465766,2303.2,2303.1,4.34181]
[1725721264343,1.54465766,2303.2,2302.9,0.70643416]
[1725721264344,1.54465766,2303.2,2303.0,4.34207]
[1725721264573,1.54465766,2303.2,2302.9,4.34234]
[1725721264789,0.04552606,2303.1,2302.9,4.34234]
[1725721265094,0.04552606,2303.1,2302.9,4.34225]
[1725721265294,0.04552606,2303.1,2302.9,8.6845]
[1725721265603,1.54465766,2303.0,2302.7,4.34255]
[1725721265762,4.38751606,2303.1,2302.7,8.68527]
[1725721265763,1.54465766,2302.8,2302.7,8.68527]
[1725721265958,6.75481073,2303.1,2302.8,4.34245]
[1725721267575,6.75481073,2303.1,2302.9,0.15671711]
[1725721267757,8.0933798,2303.1,2302.9,0.15671711]
[1725721268696,8.0933798,2303.1,2302.9,4.49898711]
[1725721268998,6.75481073,2303.1,2302.9,4.49898711]
[1725721269212,6.70928467,2303.1,2303.0,4.34216]
[1725721269502,6.70928467,2303.1,2303.0,0.15667733]
[1725721269703,3.70928467,2303.5,2303.0,0.15667733]
[1725721269865,3.75481073,2303.5,2303.3,4.34159]
[1725721270071,4.1302918,2303.5,2303.3,4.34159]
[1725721270267,4.1302918,2303.5,2303.4,0.15619752]
[1725721270575,3.75481073,2303.7,2303.4,4.49759752]
[1725721271505,3.75481073,2303.7,2303.4,0.15619752]
[1725721271707,3.70928467,2303.5,2303.4,0.15619752]
[1725721272669,6.70928467,2303.5,2303.4,0.15619752]
[1725721273579,6.70928467,2303.5,2303.4,2.47399752]
[1725721273793,10.97928467,2304.2,2303.8,4.34059]
[1725721274107,0.04552606,2304.1,2303.9,0.15537011]
[1725721274670,0.04552606,2304.1,2303.9,4.49583011]
[1725721274911,3.75481073,2304.2,2303.9,4.49583011]
[1725721275077,3.0,2304.1,2304.0,4.34027]
[1725721275281,3.0,2304.1,2304.0,4.49552495]
[1725721277017,3.0,2304.1,2304.0,8.83579495]
[1725721278189,3.0,2304.1,2304.0,4.49552495]
[1725721278922,3.0,2304.1,2304.0,0.15525495]
[1725721279227,6.14350713,2304.1,2304.0,0.15525495]
[1725721279378,6.14350713,2304.1,2303.8,4.34063]
[1725721279575,3.70928467,2303.9,2303.7,4.34069]
[1725721280010,3.70928467,2303.9,2303.8,4.34065]
[1725721280216,6.70928467,2303.9,2303.8,8.6813]
[1725721280380,6.70928467,2303.9,2303.8,9.2313]
[1725721282591,6.70928467,2303.9,2303.8,9.38589279]
[1725721283003,6.70928467,2303.9,2303.8,4.49524279]
[1725721283203,7.38021314,2303.9,2303.8,0.15459279]
[1725721283517,7.38021314,2303.9,2303.6,4.34089]
[1725721283687,3.04552606,2303.8,2303.6,4.34089]
[1725721284121,3.70928467,2303.7,2303.6,4.34089]
[1725721284626,6.70928467,2303.7,2303.6,4.34089]
[1725721284826,6.70928467,2303.7,2303.0,4.34205]
[1725721284827,9.87435859,2303.7,2303.0,4.34205]
[1725721284986,3.70928467,2303.1,2303.0,4.34205]
[1725721285183,6.70928467,2303.1,2303.0,4.34205]
[1725721285690,6.70928467,2303.1,2302.8,4.34242]
[1725721285904,3.70928467,2302.9,2302.6,4.34273]
[1725721286084,3.70928467,2302.7,2302.2,4.34357]
[1725721286284,3.70928467,2302.5,2302.2,4.34354]
[1725721286722,3.70928467,2302.5,2302.3,4.34344]
[1725721287924,3.70928467,2302.5,2302.2,4.34354]
[1725721288306,0.04552606,2302.4,2302.2,4.34354]
[1725721289493,0.04552606,2302.4,2302.3,4.34348]
[1725721289696,3.70928467,2302.5,2302.3,4.34348]
[1725721289894,3.75481073,2302.7,2302.4,4.34329]
[1725721290109,3.0,2302.6,2302.4,4.34329]
[1725721290513,3.0,2302.6,2302.5,4.3431]
[1725721290726,3.0,2302.6,2302.5,8.6862]
[1725721290889,3.0,2302.6,2302.5,9.2362]
[1725721292026,3.70928467,2302.9,2302.6,4.34291]
[1725721292323,3.0,2302.8,2302.7,4.34272]
[1725721292634,3.70928467,2302.8,2302.7,4.34272]
[1725721292815,6.70928467,2302.8,2302.7,4.34272]
[1725721294590,3.70928467,2302.8,2302.7,4.34272]
[1725721294791,6.70928467,2302.8,2302.7,4.34272]
[1725721295827,6.70928467,2302.8,2302.6,4.34291]
[1725721296035,7.38476574,2302.8,2302.6,4.34279]
[1725721296742,8.7489333,2302.8,2302.6,4.34279]
[1725721297938,7.38476574,2302.8,2302.6,4.34279]
[1725721298092,7.4302918,2302.8,2302.6,8.6856]
[1725721298294,6.70928467,2302.8,2302.7,8.83710943]
[1725721300606,3.70928467,2303.0,2302.9,8.6847]
[1725721300811,3.70928467,2303.0,2302.9,8.83613888]
[1725721302640,6.70928467,2303.0,2302.9,8.83613888]
[1725721305313,3.0,2303.0,2302.9,8.83613888]
[1725721305515,3.0,2303.1,2303.0,4.34211]
[1725721305906,3.0,2303.1,2303.0,4.49315689]
[1725721306351,4.36416756,2303.1,2303.0,4.49315689]
[1725721307526,3.0,2303.1,2303.0,4.49315689]
[1725721307849,7.82400179,2303.1,2303.0,0.15104689]
[1725721308154,7.86952785,2303.1,2302.9,4.34235]
[1725721308310,3.70928467,2303.0,2302.6,4.34288]
[1725721308513,3.70928467,2302.8,2302.6,4.34288]
[1725721309759,3.70928467,2302.8,2302.7,4.34272]
[1725721310054,6.70928467,2302.8,2302.7,4.34272]
[1725721311552,6.70928467,2302.8,2302.3,4.34345]
[1725721311553,8.07345223,2302.8,2302.5,4.34308]
[1725721311849,5.07345223,2302.6,2302.2,4.34366]
[1725721312041,3.70928467,2302.4,2302.2,4.34366]
[1725721312240,3.70928467,2302.4,2302.3,4.34348]
[1725721312628,3.70928467,2302.4,2302.3,4.49598775]
[1725721313915,3.75481073,2302.6,2302.4,4.34316]
[1725721314140,3.70928467,2302.6,2302.5,4.3431]
[1725721314336,6.70928467,2302.6,2302.5,4.49550922]
[1725721314741,6.70928467,2302.6,2302.5,0.15240922]
[1725721317235,7.26646199,2302.6,2302.5,0.15240922]
[1725721317449,7.31198805,2302.6,2302.5,0.15240922]
[1725721317655,15.36946561,2302.6,2302.5,0.15240922]
[1725721317854,4.34375,2302.2,2301.7,4.34458]
[1725721318027,3.70928467,2301.8,2301.7,4.34458]
[1725721318372,3.70928467,2301.8,2301.7,8.68919]
[1725721319231,3.70928467,2301.8,2301.7,4.34458]
[1725721320354,3.70928467,2301.8,2301.6,4.34479]
[1725721320945,3.70928467,2301.8,2301.7,4.34461]
[1725721321262,3.70928467,2301.8,2301.6,8.68936]
[1725721321494,3.70928467,2301.8,2301.6,4.34466]
[1725721322284,2.3504,2301.6,2301.2,4.34541]
[1725721322481,3.70928467,2301.3,2301.0,4.34577]
[1725721322781,0.04552606,2301.5,2301.0,4.34577]
[1725721322782,3.70928467,2301.1,2301.0,4.34577]
[1725721323757,3.70928467,2301.3,2301.2,4.34552]
[1725721323973,3.0,2301.3,2301.2,8.69107]
[1725721324177,3.70928467,2301.5,2301.4,4.34518]
[1725721324587,6.70928467,2301.5,2301.4,8.83038956]
[1725721324895,6.70928467,2301.5,2301.4,8.69036]
[1725721325052,6.70928467,2301.5,2301.4,8.83038956]
[1725721325255,10.97928467,2301.7,2301.6,4.3448]
[1725721325465,6.70928467,2301.7,2301.6,4.3448]
[1725721325658,6.70928467,2301.7,2301.6,4.48451119]
[1725721326246,6.70928467,2301.7,2301.6,8.82931119]
[1725721326473,3.70928467,2301.9,2301.8,4.34442]
[1725721326897,6.70928467,2301.9,2301.8,4.48380662]
[1725721327184,6.70928467,2301.9,2301.8,4.34442]
[1725721327550,6.70928467,2301.9,2301.8,4.4837441]
[1725721328276,6.70928467,2301.9,2301.8,8.8281641]
[1725721328786,6.70928467,2301.9,2301.8,4.4837441]
[1725721329593,6.70928467,2301.9,2301.8,8.8281641]
[1725721337411,6.70928467,2301.9,2301.8,4.4837441]
[1725721337897,9.96009199,2301.9,2301.3,4.34518]
[1725721338211,3.70928467,2301.4,2301.3,4.34518]
[1725721338586,6.70928467,2301.4,2301.3,4.34518]
[1725721339277,6.70928467,2301.4,2301.2,4.34555]
[1725721339474,7.38476574,2301.4,2301.2,4.34555]
[1725721339887,7.38476574,2301.4,2301.3,4.34537]
[1725721340090,6.70928467,2301.4,2301.3,8.69074]
[1725721341616,6.70928467,2301.4,2301.3,4.34537]
[1725721342108,6.70928467,2301.4,2300.9,4.34597]
[1725721342305,3.70928467,2301.1,2300.9,4.34597]
[1725721342508,3.04552606,2301.0,2300.9,4.34597]
[1725721343242,3.0,2301.0,2300.9,4.34597]
[1725721344005,3.04552606,2301.0,2300.9,4.34597]
[1725721344435,3.0,2301.0,2300.8,4.34622]
[1725721344957,3.0,2301.0,2300.9,8.69224]
[1725721345853,3.0,2301.0,2300.9,11.06254]
[1725721346011,3.0,2301.2,2301.1,4.3457]
[1725721346343,3.04552606,2301.2,2301.1,4.3457]
[1725721346519,3.0,2301.2,2301.1,4.3457]
[1725721346716,3.04552606,2301.2,2301.1,4.3457]
[1725721346949,3.0,2301.2,2301.1,4.3457]
[1725721350251,3.0,2301.2,2301.1,8.69144]
[1725721351811,3.0,2301.4,2301.3,4.3452]
[1725721352425,3.0,2301.4,2300.8,4.3462]
[1725721352426,6.60307,2301.3,2300.8,4.34629]
[1725721352622,3.70928467,2300.9,2300.7,4.34648]
[1725721353162,3.70928467,2300.9,2300.6,8.69318]
[1725721353163,5.96688467,2300.9,2300.6,8.69318]
[1725721353369,5.96688467,2300.9,2300.6,8.69317]
[1725721353527,7.00270974,2300.9,2300.6,8.69318]
[1725721354228,3.70928467,2300.9,2300.7,4.34648]
[1725721355827,3.0,2301.2,2301.1,8.69148]
[1725721356042,3.0,2301.3,2301.2,4.34555]
[1725721356243,3.0,2301.3,2301.2,8.6911]
[1725721356468,3.0,2301.4,2301.3,4.3453]
[1725721356768,3.0,2301.4,2301.3,4.47212375]
[1725721356979,3.45506659,2301.4,2301.3,4.47212375]
[1725721357137,0.45506659,2301.4,2301.3,8.81749375]
[1725721358376,3.45506659,2301.4,2301.3,8.81749375]
[1725721359084,5.52737059,2301.9,2301.8,4.34442]
[1725721359377,0.4550449,2301.9,2301.8,8.81470882]
[1725721360152,0.4550449,2301.9,2301.8,9.36470882]
[1725721362200,5.52737059,2302.6,2302.5,8.6862]
[1725721362340,0.45499796,2302.6,2302.5,8.6862]
[1725721362549,2.27308388,2302.6,2302.5,8.8108961]
[1725721362789,2.27308388,2302.6,2302.5,0.1246961]
[1725721362790,9.26617786,2302.6,2302.5,0.1246961]
[1725721362958,9.7185559,2302.6,2302.3,4.34336]
[1725721363160,3.70928467,2302.4,2302.3,4.34336]
[1725721363450,3.75481073,2302.4,2301.9,8.68825]
[1725721363650,3.70928467,2302.2,2302.0,4.34401]
[1725721363865,4.49384743,2302.2,2302.1,4.34385]
[1725721364176,7.49384743,2302.2,2302.1,4.46900739]
[1725721364480,7.49384743,2302.2,2302.1,0.12515739]
[1725721365190,10.76077796,2302.6,2302.1,0.12515739]
[1725721365191,1.82035293,2302.5,2302.3,4.34336]
[1725721365392,6.70928467,2302.5,2302.4,4.46810141]
[1725721366683,3.0,2302.5,2302.4,8.81139141]
[1725721366861,1.28028121,2302.6,2302.4,8.81139141]
[1725721366862,3.45499796,2302.6,2302.5,4.3431]
[1725721367060,4.58050791,2302.6,2302.5,4.3431]
[1725721367272,4.58050791,2302.6,2302.5,4.467214]
[1725721367664,3.45499796,2302.6,2302.5,8.810314]
[1725721368946,0.45499796,2302.6,2302.5,8.810314]
[1725721369389,0.45499796,2302.6,2302.5,9.360314]
[1725721369793,0.45499796,2302.6,2302.5,13.703414]
[1725721370988,0.45499796,2302.6,2302.5,16.081614]
[1725721371296,7.27,2303.5,2303.3,4.34159]
[1725721371535,5.98062188,2303.8,2303.3,4.34159]
[1725721371536,3.75481073,2303.6,2303.3,4.34159]
[1725721371675,0.45493534,2303.5,2303.4,0.12307666]
[1725721371864,0.83041641,2303.5,2303.4,0.12307666]
[1725721372764,3.24341641,2303.5,2303.4,0.12307666]
[1725721373110,6.24341641,2303.5,2303.1,4.34186]
[1725721373257,3.70928467,2303.3,2303.1,4.34186]
[1725721373462,3.70928467,2303.3,2303.2,0.12330711]
[1725721373765,6.70928467,2303.3,2303.2,0.12330711]
[1725721374128,6.75481073,2303.3,2303.2,0.12330711]
[1725721375415,6.75481073,2303.3,2303.0,4.34215]
[1725721375592,3.83919293,2303.2,2303.1,0.12342235]
[1725721375791,3.83919293,2303.2,2302.9,8.68444]
[1725721376002,3.83919293,2303.2,2302.9,4.34219]
[1725721376312,3.83919293,2303.2,2303.0,0.1235376]
[1725721376679,3.70928467,2303.1,2303.0,0.1235376]
[1725721377012,6.70928467,2303.1,2303.0,0.1235376]
[1725721377176,3.0,2303.1,2303.0,4.4656976]
[1725721377377,3.75481073,2303.3,2303.0,4.4656976]
[1725721377378,3.0,2303.2,2303.0,4.4656976]
[1725721378722,3.72859131,2303.2,2303.0,4.4656976]
[1725721379543,3.72859131,2303.2,2303.0,8.8077476]
[1725721379908,3.72859131,2303.2,2303.0,8.8076476]
[1725721380104,3.72859131,2303.2,2303.1,4.34197]
[1725721380318,3.0,2303.2,2303.1,4.34197]
[1725721380522,3.0,2303.2,2303.1,4.46539235]
[1725721381545,3.0,2303.2,2303.1,8.80736235]
[1725721381757,4.16422001,2303.5,2303.4,4.3414]
[1725721381930,0.45493534,2303.5,2303.4,8.80497934]
[1725721382876,0.45493534,2303.5,2303.4,9.35497934]
[1725721383631,0.45493534,2303.5,2303.4,8.80497934]
[1725721383837,4.88064201,2303.5,2303.4,0.12217934]
[1725721384065,7.92616807,2303.5,2303.4,0.12217934]
[1725721384237,7.92616807,2303.5,2303.2,4.34162]
[1725721384432,7.92616807,2303.5,2303.0,4.34204]
[1725721384433,3.70928467,2303.3,2303.0,4.34204]
[1725721384665,0.04552606,2303.2,2303.0,4.34204]
[1725721384873,3.45493534,2303.5,2303.4,4.3414]
[1725721385332,7.16422001,2303.5,2303.4,4.3414]
[1725721386871,9.49002001,2303.5,2303.3,4.34149]
[1725721387074,0.04552606,2303.4,2303.1,4.34178]
[1725721387277,7.16422001,2303.5,2303.3,4.34159]
[1725721387571,7.88064201,2303.5,2303.2,4.34173]
[1725721387739,7.92616807,2303.5,2303.3,0.12203477]
[1725721388577,0.45493534,2303.5,2303.4,13.0242]
[1725721388734,0.45493534,2303.5,2303.4,13.69611956]
[1725721391751,0.45493534,2303.5,2303.4,13.14611956]
[1725721391951,0.45493534,2303.5,2303.4,13.69611956]
[1725721393452,0.45493534,2303.5,2303.4,8.80471956]
[1725721393798,0.45493534,2303.5,2303.4,0.12191956]
[1725721393948,4.58064201,2303.5,2303.4,0.12191956]
[1725721394694,7.58064201,2303.5,2303.4,0.12191956]
[1725721395162,7.58064201,2303.5,2303.4,4.46331956]
[1725721396000,7.16422001,2303.5,2303.4,4.46331956]
[1725721396210,7.16422001,2303.5,2303.4,0.12191956]
[1725721397220,2.3475,2303.4,2302.7,4.34257]
[1725721397502,2.3475,2303.4,2302.9,4.34224]
[1725721397503,3.70928467,2303.0,2302.9,4.34224]
[1725721397906,3.70928467,2303.0,2302.8,4.34253]
[1725721398101,4.16419859,2303.0,2302.9,4.34235]
[1725721398302,4.16419859,2303.0,2302.9,4.4563814]
[1725721398684,7.16419859,2303.0,2302.9,0.1140314]
[1725721400696,3.45491392,2303.0,2302.9,8.7987314]
[1725721400894,0.45491392,2303.0,2302.9,8.7987314]
[1725721401283,0.45491392,2303.0,2302.9,10.23560414]
[1725721401490,0.45491392,2303.0,2302.9,14.69198554]
[1725721401898,0.45491392,2303.0,2302.9,15.24198554]
[1725721402104,0.45491392,2303.0,2302.9,17.60958554]
[1725721402327,0.45491392,2303.0,2302.9,22.38833554]
[1725721402686,0.45491392,2303.0,2302.9,22.38773554]
[1725721403091,3.92e-06,2303.0,2302.9,22.38773554]
[1725721406036,3.92e-06,2303.0,2302.9,18.04538554]
[1725721406742,3.92e-06,2303.0,2302.9,22.38773554]
[1725721407802,3.92e-06,2303.0,2302.9,18.04538554]
[1725721409191,3.92e-06,2303.0,2302.9,22.38773554]
[1725721409808,3.92e-06,2303.0,2302.9,26.97473554]
[1725721411938,3.92e-06,2303.0,2302.9,29.97473554]
[1725721415129,3.92e-06,2303.0,2302.9,24.83773554]
[1725721415643,3.92e-06,2303.0,2302.9,17.05958554]
[1725721415952,3.92e-06,2303.0,2302.9,13.1410814]
[1725721416132,3.92e-06,2303.0,2302.9,8.7987314]
[1725721417006,3.92e-06,2303.0,2302.9,13.1410814]
[1725721418516,3.92e-06,2303.0,2302.9,13.6910814]
[1725721422846,3.92e-06,2303.0,2302.9,8.7987314]
[1725721423010,3.92e-06,2303.0,2302.9,4.4563814]
[1725721423836,3.92e-06,2303.0,2302.9,8.7987314]
[1725721424021,3.92e-06,2303.0,2302.9,9.67860454]
[1725721424451,3.92e-06,2303.0,2302.9,10.22860454]
[1725721424760,3.92e-06,2303.0,2302.9,16.87295454]
[1725721425652,3.92e-06,2303.0,2302.9,21.21530454]
[1725721426646,3.92e-06,2303.0,2302.9,16.87295454]
[1725721428469,3.92e-06,2303.0,2302.9,21.21530454]
[1725721429840,3.92e-06,2303.0,2302.9,16.87295454]
[1725721430038,3.92e-06,2303.0,2302.9,21.21530454]
[1725721432685,3.92e-06,2303.0,2302.9,25.55765454]
[1725721432885,3.92e-06,2303.0,2302.9,25.99345454]
[1725721433388,3.92e-06,2303.0,2302.9,21.65110454]
[1725721435408,3.92e-06,2303.0,2302.9,25.99345454]
[1725721438299,3.92e-06,2303.0,2302.9,21.65110454]
[1725721438508,3.92e-06,2303.0,2302.9,25.99345454]
[1725721438726,3.92e-06,2303.0,2302.9,21.65110454]
[1725721439117,3.92e-06,2303.0,2302.9,25.99345454]
[1725721439540,3.92e-06,2303.0,2302.9,21.65110454]
[1725721439863,3.92e-06,2303.0,2302.9,25.99345454]
[1725721440141,3.92e-06,2303.0,2302.9,20.66530454]
[1725721440712,3.92e-06,2303.0,2302.9,14.02095454]
[1725721442234,3.92e-06,2303.0,2302.9,8.7987314]
[1725721442235,2.39150392,2303.0,2302.9,8.7987314]
[1725721442611,2.39150392,2303.0,2302.9,8.6847]
[1725721443052,3.92e-06,2303.0,2302.9,13.13666771]
[1725721444548,3.92e-06,2303.0,2302.9,13.68666771]